bitfinex/quotes_ETHUSD_20240910
["timestamp","ask_amount","ask_price","bid_price","bid_amount"]
[1725936446814,0.06049284,2350.1,2349.7,0.04367053]
[1725936446987,0.06049284,2350.1,2349.7,0.33118003]
[1725936450325,4.50299265,2350.2,2349.7,0.33118003]
[1725936454553,3.83689265,2350.3,2349.8,0.04367672]
[1725936454721,0.05862707,2350.2,2349.9,2.4691]
[1725936454923,0.05862707,2350.2,2350.0,0.25127767]
[1725936455109,1.50299265,2350.3,2350.0,0.25127767]
[1725936455713,0.05862707,2350.2,2350.0,0.25127767]
[1725936456113,0.05861571,2350.1,2350.0,0.25127767]
[1725936456421,1.50299265,2350.3,2349.9,2.4691]
[1725936456626,0.05862707,2350.2,2349.9,2.4691]
[1725936456825,1.50299265,2350.3,2349.9,2.4691]
[1725936457028,0.05861571,2350.1,2349.9,2.4691]
[1725936457237,1.50299265,2350.3,2349.9,2.4691]
[1725936457446,0.05860435,2350.0,2349.9,2.4691]
[1725936457649,1.50299265,2350.3,2349.9,2.74912862]
[1725936457839,0.05860435,2350.0,2349.9,2.74912862]
[1725936458044,1.50299265,2350.3,2349.9,2.74912862]
[1725936458242,0.05860435,2350.0,2349.9,2.74912862]
[1725936458416,1.50299265,2350.3,2349.9,2.74912862]
[1725936458615,0.05862707,2350.2,2349.9,2.74912862]
[1725936458949,1.50299265,2350.3,2350.0,0.27928053]
[1725936459153,0.05861571,2350.1,2349.9,2.4691]
[1725936459351,2.4706,2350.2,2349.8,0.04367672]
[1725936459961,0.0589569,2350.1,2349.8,0.04367672]
[1725936460157,1.56194955,2350.1,2349.7,2.7615095]
[1725936461572,1.56194955,2350.1,2349.7,0.2875095]
[1725936461735,1.56194955,2350.1,2349.5,10.16722447]
[1725936462074,1.50299265,2349.9,2349.5,2.80722447]
[1725936462935,1.50299265,2350.1,2349.5,2.80722447]
[1725936463580,1.50299265,2349.9,2349.5,2.80722447]
[1725936465839,1.50299265,2350.1,2349.5,2.80722447]
[1725936466041,1.50299265,2350.1,2349.6,0.46198013]
[1725936467084,1.50299265,2349.9,2349.6,0.46198013]
[1725936472297,1.50299265,2349.9,2349.5,2.4465]
[1725936473397,4.01467769,2349.9,2349.3,3.23244765]
[1725936473543,1.50299265,2349.9,2349.4,3.46113477]
[1725936473747,1.50299265,2349.9,2349.3,3.23244765]
[1725936473948,1.50299265,2349.9,2349.4,3.46146931]
[1725936474243,1.50299265,2349.9,2349.4,1.82115595]
[1725936474468,1.50299265,2349.9,2349.5,3.67076417]
[1725936474687,1.50299265,2349.9,2349.5,2.4603]
[1725936476502,1.50299265,2349.9,2349.6,1.21131139]
[1725936476804,1.50299265,2349.9,2349.5,2.4603]
[1725936477263,0.10638504,2350.0,2349.5,2.4603]
[1725936477264,1.50299265,2349.7,2349.5,2.4603]
[1725936478981,1.50299265,2349.7,2349.4,2.66479767]
[1725936479296,1.50299265,2349.7,2349.5,1.21178787]
[1725936479596,1.50299265,2349.7,2349.3,0.88734765]
[1725936479760,1.50299265,2349.7,2349.4,3.02942473]
[1725936480101,0.05651713,2349.6,2349.3,0.88734765]
[1725936480295,0.05651713,2349.6,2349.4,3.02965197]
[1725936480471,0.05651713,2349.6,2349.3,0.88734765]
[1725936480669,1.50299265,2349.5,2349.4,1.21181574]
[1725936480982,1.50299265,2349.5,2349.4,3.02954036]
[1725936481184,1.50299265,2349.5,2349.4,1.21181574]
[1725936481385,2.4954,2349.8,2349.2,3.40347625]
[1725936481701,2.4954,2349.8,2349.3,3.50341347]
[1725936481702,1.50299265,2349.6,2349.3,3.50341347]
[1725936481861,1.50299265,2349.4,2349.3,0.88734765]
[1725936482062,1.50299265,2349.4,2349.2,2.4724]
[1725936482265,1.50299265,2349.4,2349.3,1.21195437]
[1725936482572,1.50299265,2349.4,2349.3,1.21192293]
[1725936482771,1.50299265,2349.4,2349.3,1.66904652]
[1725936482973,1.50299265,2349.6,2349.3,1.66904652]
[1725936483208,1.50299265,2349.6,2349.2,2.4724]
[1725936483505,1.50299265,2349.6,2349.3,3.02976137]
[1725936483662,1.50299265,2349.6,2349.2,3.35974765]
[1725936483868,1.50299265,2349.6,2349.3,3.02950845]
[1725936484098,1.50299265,2349.6,2349.4,1.21171938]
[1725936484305,1.50299265,2349.6,2349.2,3.40347556]
[1725936484466,0.05618783,2349.5,2349.3,3.50265729]
[1725936484801,1.50299265,2349.4,2349.1,0.88734765]
[1725936485095,1.50299265,2349.4,2349.2,1.21191163]
[1725936485298,1.50299265,2349.4,2349.0,3.34124765]
[1725936485470,1.50299265,2349.4,2349.1,3.02905153]
[1725936485675,1.50299265,2349.4,2349.2,1.21162061]
[1725936485926,1.50299265,2349.4,2349.0,3.34124765]
[1725936486112,1.50299265,2349.4,2349.1,3.02905146]
[1725936486263,1.50299265,2349.4,2349.2,1.21162058]
[1725936486464,1.50299265,2349.4,2349.0,3.98591511]
[1725936486802,1.50299265,2349.4,2349.1,3.0287459]
[1725936487015,1.50299265,2349.4,2349.2,1.21149836]
[1725936487306,1.50299265,2349.4,2349.0,3.98591511]
[1725936487457,1.50299265,2349.4,2349.1,3.02860605]
[1725936487658,1.50299265,2349.4,2349.0,3.98591511]
[1725936487882,1.50299265,2349.4,2349.1,3.02864148]
[1725936488088,1.50299265,2349.4,2349.1,1.07681898]
[1725936488501,1.50299265,2349.4,2349.0,3.34124765]
[1725936488803,1.50299265,2349.4,2349.1,3.02828393]
[1725936489103,1.50299265,2349.4,2349.0,3.34124765]
[1725936489324,1.50299265,2349.4,2349.1,1.21130297]
[1725936489462,1.50299265,2349.4,2349.0,3.34124765]
[1725936489673,1.50299265,2349.4,2349.1,1.54529832]
[1725936489870,1.50299265,2349.4,2349.1,0.33412477]
[1725936499848,5.459,2349.7,2349.1,0.37785742]
[1725936499849,2.459,2349.7,2349.1,0.37785742]
[1725936500153,3.96199265,2349.7,2349.2,2.3908]
[1725936500514,0.05602167,2349.6,2349.3,0.04371621]
[1725936500831,0.05602167,2349.6,2349.3,0.32058031]
[1725936501696,1.55901432,2349.6,2349.3,0.32058031]
[1725936507440,1.50299265,2349.6,2349.3,0.2768641]
[1725936507648,0.05610736,2349.5,2349.2,2.3908]
[1725936508006,1.50299265,2349.4,2349.1,0.37785445]
[1725936508812,2.40850521,2349.6,2349.1,0.37785445]
[1725936509141,1.50299265,2349.5,2349.1,0.37785445]
[1725936509650,0.05607845,2349.4,2349.1,0.37785445]
[1725936512026,0.05607845,2349.4,2349.2,1.21143414]
[1725936512348,0.05607845,2349.4,2349.1,0.37785445]
[1725936512651,0.05607845,2349.4,2349.2,1.21126002]
[1725936512856,0.05607845,2349.4,2349.1,0.37785445]
[1725936513154,0.05607845,2349.4,2349.2,1.21114554]
[1725936513366,0.05607845,2349.4,2349.2,0.49161476]
[1725936515461,1.50299265,2349.5,2349.2,0.49161476]
[1725936518732,1.50299265,2349.5,2349.3,1.21139864]
[1725936518931,1.50299265,2349.5,2349.2,0.49161476]
[1725936519258,1.50299265,2349.5,2349.3,1.21138701]
[1725936519460,1.50299265,2349.5,2349.2,0.49161476]
[1725936519633,1.50299265,2349.5,2349.3,3.0287452]
[1725936519967,1.50299265,2349.5,2349.2,1.37896241]
[1725936520147,1.50299265,2349.5,2349.3,3.02876931]
[1725936520348,1.50299265,2349.5,2349.2,1.37896241]
[1725936520539,1.50299265,2349.5,2349.3,1.21131303]
[1725936520737,1.50299265,2349.5,2349.2,0.49161476]
[1725936520941,1.50299265,2349.5,2349.3,1.21140649]
[1725936521167,1.50299265,2349.5,2349.2,0.49161476]
[1725936521369,1.50299265,2349.5,2349.3,1.21137668]
[1725936521674,1.50299265,2349.5,2349.2,0.49161476]
[1725936521871,1.50299265,2349.5,2349.3,1.21161193]
[1725936522045,1.50299265,2349.5,2349.2,0.49161476]
[1725936522250,2.3021,2349.6,2349.3,3.028903]
[1725936522465,0.05607463,2349.5,2349.2,1.37896241]
[1725936522641,2.3021,2349.6,2349.3,3.02924172]
[1725936522970,2.3021,2349.6,2349.2,1.37896241]
[1725936522971,0.05630706,2349.5,2349.2,1.37896241]
[1725936523178,0.05630706,2349.5,2349.3,3.02931976]
[1725936523348,2.3021,2349.6,2349.2,1.37896241]
[1725936523571,0.05609237,2349.4,2349.3,3.02932808]
[1725936523776,2.3021,2349.6,2349.3,3.02932808]
[1725936524002,2.3021,2349.6,2349.2,1.37896241]
[1725936524190,0.05630706,2349.5,2349.3,3.02940823]
[1725936524384,0.05630706,2349.5,2349.2,1.37896241]
[1725936524385,2.3021,2349.6,2349.2,0.49161476]
[1725936524697,2.3021,2349.6,2349.3,3.03003626]
[1725936524905,2.3021,2349.6,2349.2,0.88734765]
[1725936525208,0.05630706,2349.5,2349.3,3.02995226]
[1725936525364,2.3021,2349.6,2349.2,0.88734765]
[1725936525699,2.3021,2349.6,2349.3,3.0302429]
[1725936525901,2.3021,2349.6,2349.2,0.88734765]
[1725936526104,0.05630706,2349.5,2349.3,3.03027368]
[1725936526262,2.3021,2349.6,2349.3,0.04373143]
[1725936526463,0.05630706,2349.5,2349.3,0.04373143]
[1725936526686,4.50299265,2349.7,2349.2,0.93107412]
[1725936526876,0.05631842,2349.6,2349.3,3.03018525]
[1725936527095,0.05631842,2349.6,2349.2,0.93107412]
[1725936527279,0.05631842,2349.6,2349.3,3.03019096]
[1725936527469,0.05631842,2349.6,2349.2,0.93107412]
[1725936527704,0.05631842,2349.6,2349.3,3.03025273]
[1725936527899,0.05631842,2349.6,2349.2,1.39710954]
[1725936528065,0.05631842,2349.6,2349.3,3.03035386]
[1725936528271,0.05631842,2349.6,2349.2,1.39710954]
[1725936528565,0.05631842,2349.6,2349.3,3.03032961]
[1725936528688,0.05631842,2349.6,2349.2,1.3971121]
[1725936528875,0.05631842,2349.6,2349.3,3.03063706]
[1725936529080,0.05631842,2349.6,2349.2,1.3971121]
[1725936529286,0.05631842,2349.6,2349.3,3.03066421]
[1725936529612,0.05631842,2349.6,2349.4,1.21227073]
[1725936529816,0.05631842,2349.6,2349.2,1.3971121]
[1725936530112,0.05631842,2349.6,2349.3,3.03073076]
[1725936530273,0.05631842,2349.6,2349.2,1.3971121]
[1725936530470,0.05631842,2349.6,2349.3,3.03091358]
[1725936530811,0.05631842,2349.6,2349.2,1.3971121]
[1725936530978,0.05631842,2349.6,2349.3,3.03082438]
[1725936531201,0.05631842,2349.6,2349.2,1.3971121]
[1725936531396,0.05631842,2349.6,2349.3,3.03080615]
[1725936531701,0.05631842,2349.6,2349.2,1.3971121]
[1725936531901,0.05631842,2349.6,2349.3,3.03091057]
[1725936532206,0.05631842,2349.6,2349.2,1.3971121]
[1725936532413,0.05631842,2349.6,2349.3,3.03088685]
[1725936532613,1.50299265,2349.5,2349.2,0.93107668]
[1725936532934,3.93449265,2349.5,2349.3,3.03089681]
[1725936533132,3.93449265,2349.5,2349.1,1.22147242]
[1725936533345,0.05608371,2349.4,2349.2,4.58412536]
[1725936533640,0.05608371,2349.4,2349.3,3.03066018]
[1725936534230,0.05608371,2349.4,2349.3,3.69676569]
[1725936534541,0.05608371,2349.4,2349.3,6.85170955]
[1725936534864,0.05608371,2349.4,2349.3,7.51781309]
[1725936535040,0.0560806,2349.4,2349.3,7.51781309]
[1725936535221,1.50299265,2349.7,2349.3,7.51781309]
[1725936535423,1.50299265,2349.7,2349.4,3.03066018]
[1725936535424,0.05610335,2349.6,2349.4,3.03066018]
[1725936535641,0.05610335,2349.6,2349.3,3.82104937]
[1725936535947,0.05610335,2349.6,2349.4,3.54551837]
[1725936536124,0.05610335,2349.6,2349.4,0.5151781]
[1725936538135,0.05610335,2349.6,2349.5,1.21203512]
[1725936538336,0.05610335,2349.6,2349.3,0.93107922]
[1725936538532,1.50299265,2349.7,2349.4,3.02975798]
[1725936538765,3.98629265,2349.7,2349.3,0.93107922]
[1725936538973,3.98629265,2349.7,2349.4,3.02969025]
[1725936539271,0.05610335,2349.6,2349.3,0.04373157]
[1725936539456,0.05610335,2349.6,2349.4,1.21194574]
[1725936539661,0.05610335,2349.6,2349.3,0.04373157]
[1725936539861,0.05610335,2349.6,2349.4,1.21198915]
[1725936540057,0.05610335,2349.6,2349.3,0.04373157]
[1725936540263,0.05610335,2349.6,2349.4,1.21200227]
[1725936540560,0.05610335,2349.6,2349.3,0.04373157]
[1725936540561,0.05610335,2349.6,2349.3,0.93107922]
[1725936540766,0.05610335,2349.6,2349.4,1.21196385]
[1725936540969,0.05610335,2349.6,2349.2,0.88734765]
[1725936541150,0.05610335,2349.6,2349.3,3.03006966]
[1725936541351,0.05610335,2349.6,2349.2,1.54922759]
[1725936541352,0.05610335,2349.6,2349.4,1.21202786]
[1725936541554,0.05610335,2349.6,2349.2,1.54922759]
[1725936541775,0.05610335,2349.6,2349.3,3.69624949]
[1725936541964,0.05610335,2349.6,2349.4,1.21204844]
[1725936542133,1.50299265,2349.5,2349.2,1.54922759]
[1725936542335,1.50299265,2349.5,2349.3,1.21239608]
[1725936542562,0.05631304,2349.4,2349.1,3.51337242]
[1725936542763,0.05631304,2349.4,2349.2,5.06873702]
[1725936542990,0.05631304,2349.4,2349.3,3.03084428]
[1725936545066,0.05631304,2349.4,2349.3,3.03168228]
[1725936545257,0.05631304,2349.4,2349.3,3.6978133]
[1725936546581,0.05631304,2349.4,2349.3,3.7415343]
[1725936546887,0.05631304,2349.4,2349.3,4.64853918]
[1725936547392,0.05631304,2349.4,2349.3,3.98240816]
[1725936547745,0.05631304,2349.4,2349.3,4.64853529]
[1725936547946,1.50299265,2349.5,2349.3,4.64853529]
[1725936548246,1.50299265,2349.5,2349.4,1.21267291]
[1725936548449,1.55932862,2349.5,2349.4,1.21267291]
[1725936548983,1.55932862,2349.5,2349.4,3.03209017]
[1725936549876,1.55932862,2349.5,2349.4,3.0319979]
[1725936550886,1.55932862,2349.5,2349.4,3.03170541]
[1725936552105,0.05633597,2349.5,2349.4,3.56712434]
[1725936552297,3.80909265,2350.1,2349.4,9.59914626]
[1725936552511,3.80909265,2350.1,2349.6,0.88964483]
[1725936552652,3.80909265,2350.1,2349.7,3.03170541]
[1725936552989,1.50299265,2350.2,2349.8,3.0673762]
[1725936553215,1.50299265,2350.2,2349.9,1.21267291]
[1725936553356,0.0547156,2350.1,2349.8,0.93333253]
[1725936553552,1.50299265,2350.2,2349.8,0.0436877]
[1725936553792,1.50299265,2350.2,2349.9,1.2022403]
[1725936554092,1.50299265,2350.2,2349.8,0.0436877]
[1725936554331,1.50299265,2350.2,2349.9,1.20219506]
[1725936554540,1.50299265,2350.2,2349.8,0.55070181]
[1725936554990,0.05468852,2350.1,2349.8,0.55070181]
[1725936555189,0.05468852,2350.1,2349.9,1.20170351]
[1725936555389,1.50299265,2350.2,2349.8,0.55070181]
[1725936555812,0.05468852,2350.1,2349.8,0.55070181]
[1725936555993,0.05468852,2350.1,2349.9,0.42464236]
[1725936558911,1.55768117,2350.1,2349.9,0.42464236]
[1725936563146,1.55768117,2350.1,2350.0,0.25]
[1725936564535,0.05468852,2350.1,2350.0,0.25]
[1725936564936,1.50299265,2350.3,2350.0,0.25]
[1725936565149,0.05454528,2350.1,2350.0,0.25]
[1725936565353,1.50299265,2350.3,2350.0,0.25]
[1725936565526,0.05454528,2350.1,2350.0,0.25]
[1725936565849,1.50299265,2350.3,2350.0,0.25]
[1725936566052,1.55753793,2350.1,2350.0,0.25]
[1725936566250,1.50299265,2350.1,2350.0,0.25]
[1725936566554,1.55753793,2350.1,2350.0,0.25]
[1725936574102,0.05454528,2350.1,2350.0,2.5]
[1725936574383,1.50299265,2350.4,2350.0,2.75436877]
[1725936574545,1.50299265,2350.4,2350.1,0.04362452]
[1725936576558,2.4534,2350.6,2350.1,0.04362452]
[1725936576787,2.479,2350.9,2350.2,2.2744]
[1725936577008,2.479,2350.9,2350.3,0.04360772]
[1725936577009,1.50299265,2350.7,2350.3,0.04360772]
[1725936577268,1.50299265,2350.7,2350.3,0.27540849]
[1725936577687,1.50299265,2350.5,2350.3,0.27540849]
[1725936577892,3.85309265,2350.5,2350.3,0.23180077]
[1725936578095,3.85309265,2350.5,2350.0,2.89666877]
[1725936580387,1.50299265,2350.5,2350.0,2.89666877]
[1725936580694,3.0,2350.8,2350.0,2.89666877]
[1725936580695,1.50299265,2350.1,2350.0,0.50436877]
[1725936580992,1.50299265,2350.3,2350.0,0.25]
[1725936581284,3.85109265,2350.5,2350.1,0.04365017]
[1725936581470,1.50299265,2350.5,2350.1,2.32955017]
[1725936581785,1.50299265,2350.5,2350.2,0.25795502]
[1725936585975,1.50299265,2350.3,2350.2,0.25795502]
[1725936586165,1.50299265,2350.3,2350.0,0.25]
[1725936588760,0.05486925,2350.2,2350.0,0.25]
[1725936589149,1.50299265,2350.3,2350.0,0.25]
[1725936589396,0.05485789,2350.1,2350.0,0.25]
[1725936589559,1.50299265,2350.3,2350.0,0.25]
[1725936589753,0.05484055,2350.1,2350.0,0.25]
[1725936589957,1.50299265,2350.3,2350.0,0.25]
[1725936590565,0.0546721,2350.2,2350.0,0.25]
[1725936591077,1.50299265,2350.3,2350.1,0.04363273]
[1725936592459,1.50299265,2350.3,2350.0,0.25]
[1725936597615,3.93539265,2350.5,2350.1,0.04364418]
[1725936597972,0.05300983,2350.4,2350.1,0.04364418]
[1725936598378,0.05300983,2350.4,2350.2,1.19916278]
[1725936598603,0.05300983,2350.4,2350.1,0.04364418]
[1725936598803,0.05300983,2350.4,2350.2,1.19920407]
[1725936599000,0.05300983,2350.4,2350.1,0.04364418]
[1725936599179,0.05300983,2350.4,2350.1,0.83483183]
[1725936600517,0.05300983,2350.4,2350.2,1.19927378]
[1725936600686,0.05300983,2350.4,2350.1,0.83483183]
[1725936601020,0.05300983,2350.4,2350.2,1.19924517]
[1725936601194,0.05300983,2350.4,2350.1,0.83483183]
[1725936601591,0.05300983,2350.4,2350.2,1.19929157]
[1725936601826,0.05300983,2350.4,2350.1,0.83483183]
[1725936602727,0.05300983,2350.4,2350.2,1.1993204]
[1725936603023,0.05300983,2350.4,2350.1,0.83483183]
[1725936603183,0.05300983,2350.4,2350.2,1.19933033]
[1725936603382,0.05300983,2350.4,2350.1,0.83483183]
[1725936603623,0.05300983,2350.4,2350.2,1.62405294]
[1725936603806,0.05300983,2350.4,2350.0,1.13964483]
[1725936603807,1.50299265,2350.3,2350.0,1.13964483]
[1725936604012,3.98459265,2350.3,2350.0,0.25]
[1725936604195,1.50299265,2350.1,2350.0,0.25]
[1725936604387,4.38835064,2350.1,2350.0,0.25]
[1725936604591,4.44131622,2350.1,2350.0,0.25]
[1725936605395,4.03755823,2350.1,2350.0,0.25]
[1725936605630,0.05296558,2350.1,2350.0,0.25]
[1725936605917,3.95379265,2350.3,2350.0,0.25]
[1725936606288,0.05290288,2350.2,2350.0,0.25]
[1725936606685,3.95379265,2350.3,2350.0,0.25]
[1725936607524,0.0527022,2350.2,2350.0,0.25]
[1725936608019,0.05269083,2350.1,2350.0,0.25]
[1725936608189,3.95379265,2350.3,2350.0,0.25]
[1725936608520,1.55583979,2350.1,2350.0,0.25]
[1725936608735,1.50299265,2350.1,2350.0,0.25]
[1725936609022,1.55583979,2350.1,2350.0,0.25]
[1725936610066,4.42080377,2350.1,2350.0,0.25]
[1725936610291,4.02013979,2350.1,2350.0,0.25]
[1725936618826,2.51714714,2350.1,2350.0,0.25]
[1725936619027,1.55583979,2350.1,2350.0,0.25]
[1725936619762,0.05284714,2350.1,2350.0,0.25]
[1725936620067,1.55583979,2350.1,2350.0,0.25]
[1725936624628,0.05284714,2350.1,2350.0,2.5956]
[1725936624830,0.05284714,2350.1,2350.0,0.51392746]
[1725936625038,1.50299265,2350.1,2350.0,0.25]
[1725936625238,1.55566056,2350.1,2350.0,0.25]
[1725936625648,1.50299265,2350.1,2350.0,0.25]
[1725936626286,1.50299265,2350.3,2350.0,0.25]
[1725936626484,0.05267371,2350.1,2350.0,0.51331714]
[1725936626688,1.50299265,2350.3,2350.0,0.51331714]
[1725936627245,0.05269663,2350.2,2350.0,0.51331714]
[1725936627745,1.50299265,2350.3,2350.0,0.51331714]
[1725936628467,0.05094626,2350.2,2350.0,0.51331714]
[1725936628671,0.05094626,2350.2,2350.0,0.25]
[1725936628868,1.50299265,2350.3,2350.0,0.25]
[1725936629070,0.0509349,2350.1,2350.0,0.25]
[1725936629274,1.50299265,2350.3,2350.0,0.25]
[1725936629480,0.0509349,2350.1,2350.0,0.25]
[1725936629677,1.50299265,2350.3,2350.0,0.51331538]
[1725936629860,0.0509349,2350.1,2350.0,0.51331538]
[1725936630063,1.50299265,2350.3,2350.0,0.51331538]
[1725936630290,0.0509349,2350.1,2350.0,0.51331538]
[1725936630492,1.50299265,2350.3,2350.0,0.51331538]
[1725936630695,0.0509349,2350.1,2350.0,0.51331538]
[1725936630875,1.50299265,2350.3,2350.0,0.51331538]
[1725936631186,1.50299265,2350.1,2350.0,0.25]
[1725936631348,1.5539738,2350.1,2350.0,0.25]
[1725936632056,1.5978918,2350.1,2350.0,0.25]
[1725936639395,1.59618163,2350.1,2350.0,0.25]
[1725936640573,1.50299265,2350.1,2350.0,0.25]
[1725936640799,1.59602608,2350.1,2350.0,0.25]
[1725936649128,2.00409608,2350.1,2350.0,0.25]
[1725936649334,4.44659608,2350.1,2350.0,0.25]
[1725936649481,7.44659608,2350.1,2350.0,0.25]
[1725936649678,7.55300323,2350.1,2350.0,0.25]
[1725936650022,7.44659608,2350.1,2350.0,0.25]
[1725936650218,7.44659608,2350.1,2349.4,7.36]
[1725936650219,2.3401,2350.0,2349.4,7.36]
[1725936650433,1.50299265,2349.5,2349.2,0.88964483]
[1725936650583,0.10641246,2349.5,2349.3,3.00126658]
[1725936650785,1.50299265,2349.4,2349.2,0.88964483]
[1725936651117,1.59570924,2349.4,2349.3,3.00129255]
[1725936651432,1.59570924,2349.4,2349.1,3.20264483]
[1725936651630,1.59570924,2349.4,2349.2,3.0003892]
[1725936651792,1.50299265,2349.4,2349.1,0.69336746]
[1725936652131,1.50299265,2349.4,2349.2,3.00060083]
[1725936652343,1.50299265,2349.4,2349.1,1.58301229]
[1725936652489,1.50299265,2349.4,2349.2,2.99972045]
[1725936652688,1.50299265,2349.4,2349.2,0.83132344]
[1725936652887,1.50299265,2349.4,2349.2,3.30752344]
[1725936653506,0.09244567,2349.3,2349.2,3.30752344]
[1725936653699,0.09244567,2349.3,2349.2,6.30699906]
[1725936653931,0.09244567,2349.3,2349.2,4.50731369]
[1725936656135,0.09244567,2349.3,2349.2,4.5071963]
[1725936656287,0.09244567,2349.3,2349.2,3.30752344]
[1725936656491,0.09244567,2349.3,2349.2,2.4762]
[1725936656903,0.09244567,2349.3,2349.0,3.38104483]
[1725936657124,1.50299265,2349.4,2349.1,2.99886801]
[1725936657340,1.50299265,2349.4,2349.0,2.4914]
[1725936657627,1.50299265,2349.4,2349.1,1.19936508]
[1725936657830,1.50299265,2349.4,2349.1,0.45804099]
[1725936658552,1.60940724,2349.4,2349.1,0.45804099]
[1725936658898,1.60940724,2349.4,2349.0,3.15754871]
[1725936658899,1.50299265,2349.2,2349.0,2.4914]
[1725936659540,1.60940724,2349.4,2349.0,2.4914]
[1725936661748,1.50299265,2349.2,2348.8,3.97602179]
[1725936661943,1.50299265,2349.2,2348.9,2.99734397]
[1725936662249,1.50299265,2349.2,2348.8,3.30984483]
[1725936662445,1.50299265,2349.2,2348.9,1.06698448]
[1725936662649,1.50299265,2349.2,2348.8,2.4202]
[1725936662846,1.50299265,2349.2,2348.9,1.1990412]
[1725936663057,1.50299265,2349.2,2348.8,2.4202]
[1725936663372,1.50299265,2349.2,2348.9,1.19902259]
[1725936663512,1.50299265,2349.2,2348.8,2.4202]
[1725936663714,1.50299265,2349.2,2348.9,1.59649958]
[1725936663911,1.50299265,2349.2,2348.9,0.39760367]
[1725936665852,1.60940724,2349.4,2348.9,0.44136754]
[1725936666238,1.60940724,2349.4,2348.9,0.39760367]
[1725936666489,1.60940724,2349.4,2348.9,0.44136759]
[1725936666631,2.38401948,2349.5,2349.1,2.2542]
[1725936666832,1.50299265,2349.4,2349.1,2.2542]
[1725936667351,0.09215211,2349.3,2349.1,2.2542]
[1725936668355,0.09215211,2349.3,2348.8,1.79755374]
[1725936668653,1.60821599,2349.4,2348.9,2.3121]
[1725936668815,1.50299265,2349.2,2348.9,2.3121]
[1725936669014,1.50299265,2349.2,2348.6,0.88964483]
[1725936669015,1.50299265,2349.0,2348.6,4.2204829]
[1725936669248,1.50299265,2349.0,2348.6,2.4231]
[1725936670140,1.50299265,2349.0,2348.6,2.84520149]
[1725936677273,1.50299265,2349.0,2348.6,2.88899426]
[1725936677644,1.50299265,2349.0,2348.6,2.88769726]
[1725936678045,1.50299265,2349.0,2348.6,2.84390449]
[1725936679757,1.50299265,2349.0,2348.6,2.88769738]
[1725936679963,2.3964,2349.2,2348.7,0.4685017]
[1725936679964,3.89939265,2349.2,2348.7,0.4685017]
[1725936680283,0.1064315,2349.1,2348.7,0.4685017]
[1725936681146,4.00582417,2349.2,2348.7,0.4685017]
[1725936681369,3.0,2349.4,2348.8,0.04379282]
[1725936681559,1.50299265,2349.5,2348.9,2.3501]
[1725936681756,1.50299265,2349.5,2349.0,0.28313759]
[1725936681960,0.08564135,2349.4,2349.0,0.28313759]
[1725936683690,3.08564135,2349.4,2349.0,0.28313759]
[1725936685270,3.08564135,2349.4,2349.0,0.23938928]
[1725936685919,1.50299265,2349.3,2349.0,0.23938928]
[1725936686277,0.08561913,2349.2,2349.0,0.23938928]
[1725936686479,1.50299265,2349.3,2349.0,0.23938928]
[1725936686702,0.08560963,2349.1,2349.0,0.23938928]
[1725936687013,1.50299265,2349.3,2349.0,0.23938928]
[1725936687198,0.08560963,2349.1,2349.0,0.23938928]
[1725936687424,0.1064139,2349.2,2348.7,2.4815]
[1725936687605,0.08560963,2349.1,2348.7,2.4815]
[1725936687809,3.94501586,2349.3,2348.7,2.4815]
[1725936688115,0.10642322,2349.2,2348.7,2.4815]
[1725936688813,1.50299265,2349.1,2348.7,2.4815]
[1725936690009,1.50299265,2349.1,2348.6,7.78210149]
[1725936690514,1.50299265,2349.1,2348.6,9.57970411]
[1725936690729,1.50299265,2349.1,2348.6,7.78210149]
[1725936690939,1.50299265,2349.1,2348.6,9.57979008]
[1725936691220,1.50299265,2349.1,2348.6,7.78210149]
[1725936692187,1.50299265,2349.1,2348.7,0.04378298]
[1725936692381,1.50299265,2349.1,2348.7,0.40832591]
[1725936693620,1.50299265,2349.1,2348.8,2.4414]
[1725936693916,1.50299265,2349.3,2348.8,2.48518313]
[1725936694127,0.08568563,2349.0,2348.8,2.48518313]
[1725936694279,1.50299265,2349.3,2348.9,0.28497261]
[1725936694795,0.08570464,2349.2,2348.9,0.28497261]
[1725936695192,1.50299265,2349.3,2348.9,0.28497261]
[1725936695704,0.08570464,2349.2,2348.9,0.28497261]
[1725936695915,1.50299265,2349.3,2348.9,0.28497261]
[1725936696082,0.08569513,2349.1,2348.9,0.28497261]
[1725936696421,1.50299265,2349.3,2348.9,0.28497261]
[1725936697020,0.08570464,2349.2,2348.9,0.28497261]
[1725936697423,1.50299265,2349.3,2348.9,0.28497261]
[1725936697626,0.08569513,2349.1,2348.8,3.33104483]
[1725936697915,1.50299265,2349.3,2348.9,3.0002052]
[1725936698094,0.08568563,2349.0,2348.8,3.33104483]
[1725936698422,1.50299265,2349.3,2348.9,2.99995518]
[1725936698590,1.50299265,2349.3,2348.8,2.4414]
[1725936698923,1.50299265,2349.3,2348.9,3.00022002]
[1725936699096,0.08570464,2349.2,2348.8,2.98624209]
[1725936699442,1.50299265,2349.1,2348.8,0.54484209]
[1725936699781,0.08569349,2349.0,2348.8,0.54484209]
[1725936700191,0.08569349,2349.0,2348.7,1.25418776]
[1725936700391,0.08569349,2349.0,2348.8,3.00063566]
[1725936700607,1.50299265,2349.1,2348.7,1.25418776]
[1725936700787,0.08568176,2348.9,2348.8,3.00047343]
[1725936700988,1.50299265,2349.1,2348.8,3.00047343]
[1725936701187,0.08567389,2348.9,2348.7,1.25418776]
[1725936701412,1.50299265,2349.1,2348.8,3.00085687]
[1725936701615,1.50299265,2349.1,2348.7,1.25418776]
[1725936701829,0.08568563,2349.0,2348.8,3.00082285]
[1725936702030,1.50299265,2349.1,2348.9,1.20032914]
[1725936702228,1.50299265,2349.1,2348.7,0.88964483]
[1725936702414,1.50299265,2349.1,2348.8,3.0010304]
[1725936702621,1.50299265,2349.1,2348.7,0.88964483]
[1725936702934,1.50299265,2349.1,2348.8,3.00102653]
[1725936703091,1.50299265,2349.1,2348.7,0.88964483]
[1725936703293,1.50299265,2349.1,2348.8,3.00106697]
[1725936703494,1.50299265,2349.1,2348.7,0.88964483]
[1725936703796,1.50299265,2349.1,2348.8,3.00118107]
[1725936703992,1.50299265,2349.1,2348.7,0.88964483]
[1725936704218,1.50299265,2349.1,2348.8,3.00121041]
[1725936704460,1.50299265,2349.1,2348.9,1.20047019]
[1725936704661,1.50299265,2349.1,2348.7,0.88964483]
[1725936704958,1.50299265,2349.1,2348.8,3.00147385]
[1725936705164,1.50299265,2349.1,2348.9,1.20058954]
[1725936705333,1.50299265,2349.1,2348.7,0.88964483]
[1725936705535,1.50299265,2349.1,2348.8,3.00211348]
[1725936705745,1.50299265,2349.1,2348.7,0.88964483]
[1725936705746,1.50299265,2349.1,2348.9,1.20084539]
[1725936706059,1.50299265,2349.1,2348.7,0.88964483]
[1725936706363,1.50299265,2349.1,2348.8,3.0019398]